fUST/lending_fUST_20240927
["ID","MTS","AMOUNT","RATE_DAILY","PERIOD"]
[339232352,1727383846122,-533.02025456,0.00021999,120]
[339232353,1727383846131,-166.026231,0.00021999,7]
[339232354,1727383846140,-513.04853029,0.00021999,120]
[339232355,1727383846150,-504.56709286,0.00021999,120]
[339232356,1727383846161,-506.81759227,0.00021999,120]
[339232357,1727383846171,-151.0,0.00021999,7]
[339232358,1727383846180,-151.0,0.00021999,7]
[339232359,1727383846190,-151.0,0.00021999,7]
[339232360,1727383846200,-168.862581,0.00021999,7]
[339232361,1727383846209,-548.58652436,0.00021999,120]
[339232362,1727383846218,-362.07506145,0.00021999,120]
[339232363,1727383846344,-137.92493855,0.00021999,120]
[339232364,1727383846353,-474.96844635,0.00021999,120]
[339232365,1727383846362,-571.57129102,0.00021999,120]
[339232366,1727383846372,-490.20368748,0.00021999,120]
[339232367,1727383846383,-12.08064928,0.00021999,120]
[339232368,1727383846392,-505.88206999,0.00021999,120]
[339232369,1727383846402,-368.94084723,0.00021999,120]
[339232370,1727383846414,-177.47039217,0.00021999,120]
[339232371,1727383846423,-156.58060833,0.00021999,120]
[339232372,1727383846516,-381.92818453,0.00021998,2]
[339232395,1727384739855,-271.331708,0.00018601,2]
[339232396,1727384739880,-229.88,0.000192,2]
[339232397,1727384739901,-195.444036,0.00019482,2]
[339232398,1727384739922,-300.0,0.00019634,2]
[339232399,1727384739943,-300.0,0.00019634,2]
[339232400,1727384739964,-1220.29889227,0.00019635,2]
[339232404,1727384945132,-294.7429351,0.00019634,2]
[339232405,1727384946185,-5.2570649,0.00019634,2]
[339232406,1727384946209,-300.0,0.00019634,2]
[339232407,1727384946231,-1077.41081337,0.00019635,2]
[339232408,1727384956180,-5353.98485854,0.00019635,2]
[339232409,1727384965126,-248.99338069,0.00019635,2]
[339232447,1727385032292,-206.89,0.000195,2]
[339232449,1727385032302,-5117.2505662,0.00019635,2]
[339232451,1727385032316,-2291.03968233,0.00019635,2]
[339232453,1727385032327,-152.68017911,0.00020892,2]
[339232455,1727385032336,-300.0,0.00020949,2]
[339232457,1727385032345,-300.0,0.00020949,2]
[339232459,1727385032354,-1397.88409689,0.00021,2]
[339232526,1727385038522,-1602.11590311,0.00021,2]
[339232527,1727385038532,-939.74150048,0.00021,30]
[339232528,1727385038542,-3000.0,0.0002101,2]
[339232529,1727385038551,-3000.0,0.0002102,2]
[339232530,1727385038560,-3000.0,0.0002103,2]
[339232531,1727385038571,-3000.0,0.0002104,2]
[339232532,1727385038580,-3000.0,0.0002105,2]
[339232533,1727385038590,-3000.0,0.0002106,2]
[339232534,1727385038600,-1000.0,0.00021062,2]
[339232535,1727385038609,-500.0,0.00021063,2]
[339232536,1727385038618,-500.0,0.00021063,2]
[339232537,1727385038627,-500.0,0.00021063,2]
[339232538,1727385038637,-500.0,0.00021063,2]
[339232539,1727385038646,-500.0,0.00021063,2]
[339232540,1727385038656,-500.0,0.00021063,2]
[339232541,1727385038666,-500.0,0.00021063,2]
[339232542,1727385038676,-500.0,0.00021063,2]
[339232543,1727385038685,-500.0,0.00021063,2]
[339232544,1727385038694,-500.0,0.00021063,2]
[339232545,1727385038703,-500.0,0.00021063,2]
[339232546,1727385038713,-500.0,0.00021063,2]
[339232547,1727385038722,-500.0,0.00021063,2]
[339232548,1727385038731,-500.0,0.00021063,2]
[339232549,1727385038740,-500.0,0.00021063,2]
[339232550,1727385038749,-500.0,0.00021063,2]
[339232551,1727385038758,-500.0,0.00021063,2]
[339232552,1727385038767,-500.0,0.00021063,2]
[339232553,1727385038777,-500.0,0.00021063,2]
[339232554,1727385038786,-500.0,0.00021063,2]
[339232555,1727385038795,-500.0,0.00021063,2]
[339232556,1727385038804,-500.0,0.00021063,2]
[339232557,1727385038813,-500.0,0.00021063,2]
[339232558,1727385038824,-500.0,0.00021063,2]
[339232559,1727385038837,-500.0,0.00021063,2]
[339232560,1727385038846,-500.0,0.00021063,2]
[339232561,1727385038855,-500.0,0.00021063,2]
[339232562,1727385038864,-500.0,0.00021063,2]
[339232563,1727385038873,-500.0,0.00021063,2]
[339232564,1727385038882,-500.0,0.00021063,2]
[339232565,1727385038891,-500.0,0.00021063,2]
[339232566,1727385038900,-3000.0,0.0002107,2]
[339232567,1727385038909,-500.0,0.00021073,2]
[339232568,1727385038918,-3000.0,0.0002108,2]
[339232569,1727385038927,-153.0,0.00021088,2]
[339232570,1727385038936,-153.0,0.00021088,2]
[339232571,1727385038945,-153.0,0.0002109,2]
[339232572,1727385038955,-153.0,0.0002109,2]
[339232573,1727385038964,-3000.0,0.0002109,2]
[339232574,1727385038973,-153.0,0.00021092,2]
[339232575,1727385038982,-153.0,0.00021092,2]
[339232576,1727385038991,-153.0,0.00021092,2]
[339232577,1727385039002,-153.0,0.00021093,2]
[339232578,1727385039011,-153.0,0.00021093,2]
[339232579,1727385039020,-153.0,0.00021093,2]
[339232580,1727385039030,-3000.0,0.000211,2]
[339232581,1727385039039,-153.0,0.00021104,2]
[339232582,1727385039048,-153.0,0.00021104,2]
[339232583,1727385039057,-3000.0,0.0002111,2]
[339232584,1727385039067,-3000.0,0.0002112,2]
[339232585,1727385039077,-3000.0,0.0002113,2]
[339232586,1727385039086,-224.29,0.0002113,3]
[339232587,1727385039096,-672.87,0.0002113,3]
[339232588,1727385039105,-500.0,0.00021139,2]
[339232589,1727385039114,-487.13666788,0.00021139,2]
[339232590,1727385039124,-648.19624021,0.00021139,2]
[339232591,1727385039133,-500.0,0.00021139,2]
[339232592,1727385039142,-164.80324829,0.00021139,2]
[339232593,1727385039152,-500.0,0.00021139,2]
[339232594,1727385039162,-500.0,0.00021139,2]
[339232595,1727385039171,-500.0,0.00021139,2]
[339232596,1727385039181,-500.0,0.00021139,2]
[339232597,1727385039190,-224.06852681,0.00021139,2]
[339232598,1727385039200,-3000.0,0.0002114,2]
[339232599,1727385039209,-52351.9813692,0.0002114,3]
[339232600,1727385039218,-53375.8378145,0.0002114,3]
[339232601,1727385039227,-3000.0,0.0002115,2]
[339232602,1727385039242,-3000.0,0.0002116,2]
[339232603,1727385039251,-3000.0,0.0002117,2]
[339232604,1727385039260,-549.04192041,0.00021173,2]
[339232605,1727385039269,-361.24522872,0.00021173,2]
[339232606,1727385039280,-500.0,0.00021173,2]
[339232607,1727385039289,-500.0,0.00021173,2]
[339232608,1727385039298,-500.0,0.00021173,2]
[339232609,1727385039308,-607.19326485,0.00021173,2]
[339232610,1727385039321,-3000.0,0.0002118,2]
[339232611,1727385039331,-3000.0,0.0002119,2]
[339232612,1727385039340,-3000.0,0.000212,2]
[339232613,1727385039349,-3000.0,0.0002121,2]
[339232614,1727385039358,-3000.0,0.0002122,2]
[339232615,1727385039367,-3000.0,0.0002123,2]
[339232616,1727385039376,-3000.0,0.0002124,2]
[339232617,1727385039384,-3000.0,0.0002125,2]
[339232618,1727385039393,-3000.0,0.0002126,2]
[339232619,1727385039403,-3000.0,0.0002127,2]
[339232620,1727385039412,-3000.0,0.0002128,2]
[339232621,1727385039421,-52351.9813692,0.0002128,3]
[339232622,1727385039430,-53375.8378145,0.0002128,3]
[339232623,1727385039440,-3000.0,0.0002129,2]
[339232624,1727385039449,-3000.0,0.000213,2]
[339232625,1727385039458,-3000.0,0.0002131,2]
[339232626,1727385039467,-3000.0,0.0002132,2]
[339232627,1727385039477,-3000.0,0.0002133,2]
[339232628,1727385039486,-3000.0,0.0002134,2]
[339232629,1727385039496,-4849.005808,0.0002135,2]
[339232630,1727385039507,-150.112233,0.000216,2]
[339232631,1727385039516,-1000.0,0.00021621,2]
[339232632,1727385039525,-150.112233,0.000217,2]
[339232633,1727385039534,-150.112233,0.000217,3]
[339232634,1727385039544,-1000.0,0.00021721,2]
[339232635,1727385039553,-1000.0,0.00021747,2]
[339232636,1727385039562,-1000.0,0.0002177,2]
[339232637,1727385039572,-150.112233,0.000218,4]
[339232638,1727385039582,-465.00000002,0.0002183,2]
[339232639,1727385039591,-1000.0,0.00021863,2]
[339232640,1727385039600,-3848.0,0.00021899,2]
[339232641,1727385039609,-1865.78580078,0.00021899,2]
[339232642,1727385039618,-150.112235,0.000219,4]
[339232643,1727385039628,-152.67,0.000219,31]
[339232644,1727385039637,-152.67,0.000219,31]
[339232645,1727385039646,-152.67,0.000219,31]
[339232646,1727385039656,-152.67,0.000219,31]
[339232648,1727385039665,-152.67,0.000219,31]
[339232650,1727385039674,-152.67,0.000219,31]
[339232652,1727385039684,-152.67,0.000219,31]
[339232653,1727385039693,-152.67,0.000219,31]
[339232654,1727385039702,-152.67,0.000219,31]
[339232655,1727385039711,-152.67,0.000219,31]
[339232656,1727385039721,-152.67,0.000219,31]
[339232658,1727385039730,-152.67,0.000219,31]
[339232659,1727385039739,-152.67,0.000219,31]
[339232660,1727385039748,-152.67,0.000219,31]
[339232661,1727385039758,-3392.0,0.000219,7]
[339232662,1727385039767,-150.112233,0.000219,3]
[339232664,1727385039777,-500.0,0.00021917,2]
[339232665,1727385039786,-158.48573762,0.0002192,7]
[339232666,1727385039795,-158.48573762,0.0002192,7]
[339232667,1727385039804,-158.48573762,0.0002192,7]
[339232668,1727385039813,-158.48573762,0.0002192,7]
[339232669,1727385039823,-158.48573762,0.0002192,7]
[339232671,1727385039833,-158.48573762,0.0002192,7]
[339232672,1727385039842,-158.48573762,0.0002192,7]
[339232674,1727385039851,-158.48573762,0.0002192,7]
[339232676,1727385039860,-158.98,0.0002192,7]
[339232677,1727385039870,-455.58564372,0.00021973,2]
[339232678,1727385039880,-500.0,0.00021973,2]
[339232679,1727385039889,-209407.925477,0.00021989,3]
[339232681,1727385039899,-213503.351258,0.00021989,3]
[339232683,1727385039909,-151.0,0.00021989,7]
[339232685,1727385039919,-151.0,0.00021989,7]
[339232687,1727385039928,-336.0,0.0002199,5]
[339232689,1727385039937,-204.3582581,0.00021998,2]
[339232690,1727385039947,-1448.04085233,0.00021998,2]
[339232692,1727385039957,-160.0,0.00021998,2]
[339232694,1727385039967,-160.0,0.00021998,2]
[339232696,1727385039976,-4064.9771172,0.00021999,2]
[339232698,1727385039986,-3131.54599869,0.00021999,2]
[339232700,1727385039995,-151.0,0.00021999,7]
[339232702,1727385040004,-151.0,0.00021999,7]
[339232703,1727385040015,-504.6117391,0.00021999,120]
[339232705,1727385040025,-151.0,0.00021999,7]
[339232706,1727385040035,-289.462484,0.00021999,7]
[339232707,1727385040045,-500.0,0.00021999,120]
[339232708,1727385040056,-505.83924349,0.00021999,120]
[339232709,1727385040065,-350.63898744,0.00021999,120]
[339232710,1727385040075,-504.29629356,0.00021999,120]
[339232711,1727385040084,-502.62861919,0.00021999,120]
[339232712,1727385040094,-500.0,0.00021999,120]
[339232713,1727385040103,-534.59752582,0.00021999,120]
[339232714,1727385040113,-151.0,0.00021999,7]
[339232715,1727385040122,-151.0,0.00021999,7]
[339232716,1727385040131,-500.0,0.00021999,120]
[339232717,1727385040141,-500.0,0.00021999,120]
[339232718,1727385040151,-507.52994301,0.00021999,120]
[339232719,1727385040161,-500.0,0.00021999,7]
[339232720,1727385040171,-500.0,0.00021999,7]
[339232721,1727385040180,-500.0,0.00021999,7]
[339232722,1727385040191,-500.0,0.00021999,7]
[339232723,1727385040200,-500.0,0.00021999,7]
[339232724,1727385040210,-500.0,0.00021999,7]
[339232725,1727385040220,-500.0,0.00021999,7]
[339232726,1727385040230,-500.0,0.00021999,7]
[339232727,1727385040242,-500.0,0.00021999,7]
[339232728,1727385040252,-500.0,0.00021999,7]
[339232729,1727385040262,-500.0,0.00021999,7]
[339232730,1727385040272,-500.0,0.00021999,7]
[339232731,1727385040282,-500.0,0.00021999,7]
[339232732,1727385040292,-500.0,0.00021999,7]
[339232733,1727385040302,-500.0,0.00021999,7]
[339232734,1727385040314,-500.0,0.00021999,7]
[339232735,1727385040324,-500.0,0.00021999,7]
[339232736,1727385040334,-500.0,0.00021999,7]
[339232737,1727385040344,-500.0,0.00021999,7]
[339232738,1727385040355,-500.0,0.00021999,7]
[339232739,1727385040365,-188.38977394,0.00021999,7]
[339232740,1727385040374,-500.5765147,0.00021999,120]
[339232741,1727385040383,-500.0,0.00021999,120]
[339232742,1727385040392,-500.0,0.00021999,120]
[339232743,1727385040403,-500.0,0.00021999,120]
[339232744,1727385040413,-619.29626484,0.00021999,120]
[339232745,1727385040423,-166.026231,0.00021999,7]
[339232746,1727385040433,-151.0,0.00021999,7]
[339232747,1727385040442,-151.0,0.00021999,7]
[339232748,1727385040452,-151.0,0.00021999,7]
[339232749,1727385040462,-151.0,0.00021999,7]
[339232751,1727385040472,-151.0,0.00021999,7]
[339232752,1727385040481,-507.99662457,0.00021999,120]
[339232753,1727385040491,-509.47306663,0.00021999,120]
[339232754,1727385040500,-500.0,0.00021999,120]
[339232755,1727385040509,-500.0,0.00021999,120]
[339232756,1727385040518,-500.0,0.00021999,120]
[339232757,1727385040530,-502.01512412,0.00021999,120]
[339232758,1727385040540,-500.0,0.00021999,120]
[339232759,1727385040549,-504.31479843,0.00021999,120]
[339232760,1727385040558,-505.02335943,0.00021999,120]
[339232761,1727385040568,-500.0,0.00021999,120]
[339232762,1727385040578,-457.10591749,0.00021999,120]
[339232763,1727385040588,-500.0,0.00021999,120]
[339232764,1727385040597,-500.0,0.00021999,120]
[339232765,1727385040606,-424.23185369,0.00021999,120]
[339232766,1727385040615,-502.05420717,0.00021999,120]
[339232767,1727385040624,-500.0,0.00021999,120]
[339232768,1727385040634,-407.26449209,0.00021999,120]
[339232769,1727385040645,-500.0,0.00021999,120]
[339232770,1727385040654,-500.0,0.00021999,120]
[339232771,1727385040665,-500.0,0.00021999,120]
[339232772,1727385040675,-500.0,0.00021999,120]
[339232773,1727385040685,-500.0,0.00021999,120]
[339232774,1727385040694,-577.3447711,0.00021999,120]
[339232775,1727385040704,-502.05469324,0.00021999,120]
[339232776,1727385040714,-509.19869883,0.00021999,120]
[339232777,1727385040726,-181.57311314,0.00021999,120]
[339232778,1727385040736,-151.0,0.00021999,7]
[339232779,1727385040747,-500.0,0.00021999,120]
[339232780,1727385040758,-151.0,0.00021999,7]
[339232781,1727385040769,-151.0,0.00021999,7]
[339232782,1727385040779,-500.0,0.00021999,120]
[339232783,1727385040788,-151.0,0.00021999,7]
[339232784,1727385040797,-151.0,0.00021999,7]
[339232785,1727385040917,-151.0,0.00021999,7]
[339232786,1727385040934,-151.0,0.00021999,7]
[339232787,1727385040944,-151.0,0.00021999,7]
[339232788,1727385040954,-151.0,0.00021999,7]
[339232789,1727385040964,-184.829732,0.00021999,7]
[339232790,1727385040974,-508.21840169,0.00021999,120]
[339232791,1727385040984,-500.0,0.00021999,120]
[339232792,1727385040994,-508.91502466,0.00021999,120]
[339232793,1727385041004,-406.31068931,0.00021999,120]
[339232794,1727385041014,-502.79658034,0.00021999,120]
[339232795,1727385041024,-500.0,0.00021999,120]
[339232796,1727385041033,-472.52862718,0.00021999,120]
[339232797,1727385041042,-503.97492249,0.00021999,120]
[339232798,1727385041052,-501.40429349,0.00021999,120]
[339232799,1727385041062,-500.0,0.00021999,120]
[339232800,1727385041073,-468.24505317,0.00021999,120]
[339232801,1727385041082,-500.0,0.00021999,120]
[339232802,1727385041092,-507.52923771,0.00021999,120]
[339232803,1727385041102,-501.45629944,0.00021999,120]
[339232804,1727385041111,-519.7202085,0.00021999,120]
[339232805,1727385041121,-501.09977609,0.00021999,120]
[339232806,1727385041131,-503.46727178,0.00021999,120]
[339232807,1727385041140,-500.0,0.00021999,120]
[339232808,1727385041150,-433.0437552,0.00021999,120]
[339232809,1727385041160,-500.0,0.00021999,120]
[339232810,1727385041170,-160.5107763,0.00021999,120]
[339232811,1727385041180,-500.0,0.00021999,120]
[339232812,1727385041189,-503.33782431,0.00021999,120]
[339232813,1727385041199,-500.0,0.00021999,120]
[339232814,1727385041208,-500.0,0.00021999,120]
[339232815,1727385041217,-500.0,0.00021999,120]
[339232816,1727385041227,-500.0,0.00021999,120]
[339232817,1727385041238,-502.90496196,0.00021999,120]
[339232818,1727385041253,-331.82,0.00021999,120]
[339232819,1727385041262,-500.0,0.00021999,120]
[339232820,1727385041271,-503.03317965,0.00021999,120]
[339232821,1727385041281,-500.0,0.00021999,120]
[339232822,1727385041290,-501.0279355,0.00021999,120]
[339232823,1727385041299,-500.0,0.00021999,120]
[339232824,1727385041308,-517.53662068,0.00021999,120]
[339232825,1727385041320,-192.41148625,0.00021999,120]
[339232826,1727385041329,-151.0,0.00021999,7]
[339232827,1727385041339,-151.0,0.00021999,7]
[339232828,1727385041348,-151.0,0.00021999,7]
[339232829,1727385041357,-151.0,0.00021999,7]
[339232830,1727385041367,-500.0,0.00021999,120]
[339232831,1727385041377,-216.860988,0.00021999,7]
[339232832,1727385041386,-476.96277557,0.00021999,120]
[339232833,1727385041396,-496.01865832,0.00021999,120]
[339232834,1727385041405,-504.56709286,0.00021999,120]
[339232835,1727385041414,-503.09312923,0.00021999,120]
[339232836,1727385041424,-151.0,0.00021999,7]
[339232837,1727385041434,-151.0,0.00021999,7]
[339232838,1727385041443,-189.222046,0.00021999,7]
[339232839,1727385041453,-500.0,0.00021999,7]
[339232840,1727385041462,-500.0,0.00021999,120]
[339232841,1727385041472,-500.0,0.00021999,7]
[339232842,1727385041481,-225.79366026,0.00021999,120]
[339232843,1727385041490,-500.0,0.00021999,7]
[339232844,1727385041500,-500.0,0.00021999,7]
[339232845,1727385041509,-500.0,0.00021999,7]
[339232846,1727385041518,-500.0,0.00021999,7]
[339232847,1727385041527,-389.08448722,0.00021999,7]
[339232848,1727385041537,-590.86001864,0.00021999,120]
[339232849,1727385041547,-526.62330057,0.00021999,120]
[339232850,1727385041556,-500.8998125,0.00021999,120]
[339232851,1727385041565,-500.0,0.00021999,120]
[339232852,1727385041575,-500.0,0.00021999,120]
[339232853,1727385041585,-367.48564601,0.00021999,120]
[339232854,1727385041594,-500.95213592,0.00021999,120]
[339232855,1727385041603,-500.0,0.00021999,120]
[339232856,1727385041612,-504.55730846,0.00021999,120]
[339232857,1727385041621,-500.0,0.00021999,120]
[339232858,1727385041631,-500.0,0.00021999,120]
[339232859,1727385041640,-500.0,0.00021999,120]
[339232860,1727385041650,-500.0,0.00021999,120]
[339232861,1727385041660,-503.82445046,0.00021999,120]
[339232862,1727385041670,-500.0,0.00021999,120]
[339232863,1727385041680,-500.0,0.00021999,120]
[339232864,1727385041689,-500.0,0.00021999,120]
[339232865,1727385041699,-285.33730379,0.00021999,120]
[339232866,1727385041708,-500.0,0.00021999,120]
[339232867,1727385041718,-620.18,0.00021999,120]
[339232868,1727385041727,-500.0,0.00021999,120]
[339232869,1727385041737,-502.91320453,0.00021999,120]
[339232870,1727385041747,-208.28756696,0.00021999,120]
[339232871,1727385041757,-500.0,0.00021999,120]
[339232872,1727385041767,-500.0,0.00021999,120]
[339232873,1727385041776,-339.8628852,0.00021999,120]
[339232874,1727385041786,-500.0,0.00021999,120]
[339232875,1727385041795,-239.3389003,0.00021999,120]
[339232876,1727385041806,-500.0,0.00021999,120]
[339232877,1727385041815,-513.21907142,0.00021999,120]
[339232878,1727385041826,-500.0,0.00021999,120]
[339232879,1727385041836,-500.0,0.00021999,120]
[339232880,1727385041847,-500.0,0.00021999,120]
[339232881,1727385041857,-387.08560347,0.00021999,120]
[339232882,1727385041868,-500.0,0.00021999,120]
[339232883,1727385041878,-501.26644722,0.00021999,120]
[339232884,1727385041888,-500.0,0.00021999,120]
[339232885,1727385041897,-500.0,0.00021999,120]
[339232886,1727385041907,-500.0,0.00021999,120]
[339232887,1727385041916,-504.87022391,0.00021999,120]
[339232888,1727385041927,-504.58991093,0.00021999,120]
[339232889,1727385041938,-597.06295807,0.00021999,120]
[339232890,1727385041947,-500.0,0.00021999,120]
[339232891,1727385041957,-372.61466046,0.00021999,120]
[339232892,1727385042074,-127.38533954,0.00021999,120]
[339232893,1727385042084,-502.99371237,0.00021999,120]
[339232894,1727385042094,-69.44010916,0.00021999,120]
[339232895,1727385042138,-434.34485673,0.00021999,120]
[339232896,1727385042147,-500.0,0.00021999,2]
[339232897,1727385042157,-500.0,0.00021999,2]
[339232898,1727385042166,-500.0,0.00021999,2]
[339232899,1727385042176,-500.0,0.00021999,2]
[339232900,1727385042186,-500.0,0.00021999,2]
[339232901,1727385042195,-253.08970251,0.00021999,2]
[339232902,1727385042204,-515.67353633,0.00021999,120]
[339232903,1727385042213,-501.28478165,0.00021999,120]
[339232904,1727385042223,-500.0,0.00021999,120]
[339232905,1727385042233,-500.0,0.00021999,120]
[339232906,1727385042244,-500.0,0.00021999,120]
[339232907,1727385042253,-500.0,0.00021999,120]
[339232908,1727385042263,-500.0,0.00021999,120]
[339232909,1727385042272,-161.83390764,0.00021999,120]
[339232910,1727385042282,-500.0,0.00021999,120]
[339232911,1727385042292,-500.0,0.00021999,120]
[339232912,1727385042302,-476.89472575,0.00021999,120]
[339232913,1727385042312,-501.60824517,0.00021999,120]
[339232914,1727385042326,-500.0,0.00021999,2]
[339232915,1727385042336,-500.0,0.00021999,2]
[339232916,1727385042346,-500.0,0.00021999,2]
[339232917,1727385042356,-500.0,0.00021999,2]
[339232918,1727385042366,-500.0,0.00021999,2]
[339232919,1727385042375,-500.0,0.00021999,2]
[339232920,1727385042385,-500.0,0.00021999,2]
[339232921,1727385042394,-500.0,0.00021999,2]
[339232922,1727385042403,-500.0,0.00021999,2]
[339232923,1727385042416,-500.0,0.00021999,2]
[339232924,1727385042426,-500.0,0.00021999,120]
[339232925,1727385042435,-500.0,0.00021999,2]
[339232926,1727385042444,-501.85314975,0.00021999,120]
[339232927,1727385042454,-500.0,0.00021999,2]
[339232928,1727385042463,-267.92,0.00021999,7]
[339232929,1727385042472,-500.0,0.00021999,2]
[339232930,1727385042481,-267.92,0.00021999,7]
[339232931,1727385042491,-267.92,0.00021999,7]
[339232932,1727385042500,-500.0,0.00021999,2]
[339232933,1727385042510,-267.92,0.00021999,7]
[339232934,1727385042519,-500.0,0.00021999,2]
[339232935,1727385042528,-267.92,0.00021999,7]
[339232936,1727385042538,-413.62604651,0.00021999,2]
[339232937,1727385042547,-267.92,0.00021999,7]
[339232938,1727385042556,-267.92,0.00021999,7]
[339232939,1727385042565,-267.92,0.00021999,7]
[339232940,1727385042577,-267.92,0.00021999,7]
[339232941,1727385042587,-502.49782294,0.00021999,120]
[339232942,1727385042598,-267.92,0.00021999,7]
[339232943,1727385042608,-726.78,0.00021999,120]
[339232944,1727385042618,-267.92,0.00021999,7]
[339232945,1727385042630,-267.92,0.00021999,7]
[339232946,1727385042641,-726.78,0.00021999,120]
[339232947,1727385042651,-267.92,0.00021999,7]
[339232948,1727385042660,-726.78,0.00021999,120]
[339232949,1727385042670,-267.92,0.00021999,7]
[339232950,1727385042679,-500.0,0.00021999,120]
[339232951,1727385042689,-726.78,0.00021999,120]
[339232952,1727385042699,-267.92,0.00021999,7]
[339232954,1727385042709,-501.97075498,0.00021999,120]
[339232956,1727385042719,-726.78,0.00021999,120]
[339232957,1727385042729,-267.92,0.00021999,7]
[339232958,1727385042738,-726.78,0.00021999,120]
[339232959,1727385042748,-267.92,0.00021999,7]
[339232960,1727385042758,-267.92,0.00021999,7]
[339232961,1727385042767,-726.78,0.00021999,120]
[339232962,1727385042776,-267.92,0.00021999,7]
[339232963,1727385042785,-726.78,0.00021999,120]
[339232964,1727385042795,-267.92,0.00021999,7]
[339232965,1727385042804,-726.78,0.00021999,120]
[339232966,1727385042815,-726.78,0.00021999,120]
[339232968,1727385042825,-267.92,0.00021999,7]
[339232970,1727385042834,-726.78,0.00021999,120]
[339232971,1727385042844,-267.92,0.00021999,7]
[339232973,1727385042853,-726.78,0.00021999,120]
[339232975,1727385042862,-267.92,0.00021999,7]
[339232977,1727385042873,-726.78,0.00021999,120]
[339232979,1727385042883,-268.13251587,0.00021999,7]
[339232981,1727385042893,-726.78,0.00021999,120]
[339232982,1727385042903,-726.78,0.00021999,120]
[339232984,1727385042912,-726.78,0.00021999,120]
[339232985,1727385042921,-726.78,0.00021999,120]
[339232987,1727385042931,-726.78,0.00021999,120]
[339232989,1727385042940,-726.78,0.00021999,120]
[339232990,1727385042950,-726.78,0.00021999,120]
[339232991,1727385042959,-726.78,0.00021999,120]
[339232992,1727385042969,-500.0,0.00021999,120]
[339232993,1727385042978,-726.78,0.00021999,120]
[339232994,1727385042988,-500.0,0.00021999,120]
[339232996,1727385042998,-726.78,0.00021999,120]
[339232998,1727385043008,-606.58122147,0.00021999,120]
[339232999,1727385043017,-726.90433371,0.00021999,120]
[339233000,1727385043027,-1196.3,0.00021999,7]
[339233001,1727385043038,-1196.3,0.00021999,7]
[339233002,1727385043047,-1196.3,0.00021999,7]
[339233004,1727385043057,-1196.3,0.00021999,7]
[339233006,1727385043067,-500.0,0.00021999,120]
[339233008,1727385043076,-1196.3,0.00021999,7]
[339233009,1727385043085,-1196.3,0.00021999,7]
[339233010,1727385043095,-500.0,0.00021999,120]
[339233011,1727385043104,-502.50222107,0.00021999,120]
[339233013,1727385043114,-1196.3,0.00021999,7]
[339233015,1727385043123,-500.0,0.00021999,120]
[339233016,1727385043133,-1196.3,0.00021999,7]
[339233018,1727385043143,-522.4921492,0.00021999,120]
[339233020,1727385043152,-1196.3,0.00021999,7]
[339233021,1727385043161,-397.92905079,0.00021999,120]
[339233023,1727385043171,-1196.3,0.00021999,7]
[339233024,1727385043180,-1196.3,0.00021999,7]
[339233026,1727385043190,-1196.3,0.00021999,7]
[339233027,1727385043199,-1196.3,0.00021999,7]
[339233028,1727385043208,-1196.3,0.00021999,7]
[339233029,1727385043218,-1196.3,0.00021999,7]